fUSD/lending_fUSD_20250906
["ID","MTS","AMOUNT","RATE_DAILY","PERIOD"]
[383837116,1757139051033,-400.0,0.00054794,120]
[383837117,1757139051042,-400.0,0.00054794,120]
[383837118,1757139051051,-400.0,0.00054794,120]
[383837119,1757139051062,-402.05014752,0.00054794,120]
[383837120,1757139051071,-400.0,0.00054794,120]
[383837121,1757139051081,-402.54332107,0.00054794,120]
[383837122,1757139051091,-400.0,0.00054794,120]
[383837123,1757139051101,-421.57058385,0.00054794,120]
[383837124,1757139051110,-404.90505421,0.00054794,120]
[383837125,1757139051119,-400.0,0.00054794,120]
[383837126,1757139051129,-407.07703614,0.00054794,120]
[383837127,1757139051139,-400.0,0.00054794,120]
[383837128,1757139051148,-400.0,0.00054794,120]
[383837129,1757139051158,-400.0,0.00054794,120]
[383837130,1757139051168,-400.0,0.00054794,120]
[383837131,1757139051177,-400.0,0.00054794,120]
[383837132,1757139051186,-400.9098497,0.00054794,120]
[383837133,1757139051196,-400.0,0.00054794,120]
[383837134,1757139051205,-400.0,0.00054794,120]
[383837135,1757139051215,-400.0,0.00054794,120]
[383837136,1757139051225,-400.0,0.00054794,120]
[383837137,1757139051234,-400.0,0.00054794,120]
[383837138,1757139051244,-400.0,0.00054794,120]
[383837139,1757139051253,-400.0,0.00054794,120]
[383837140,1757139051263,-400.0,0.00054794,120]
[383837141,1757139051273,-400.0,0.00054794,120]
[383837142,1757139051284,-513.35376454,0.00054794,120]
[383837143,1757139051293,-400.0,0.00054794,120]
[383837144,1757139051303,-529.17638196,0.00054794,120]
[383837145,1757139051313,-400.0,0.00054794,120]
[383837146,1757139051322,-400.0,0.00054794,120]
[383837147,1757139051331,-400.0,0.00054794,120]
[383837148,1757139051340,-400.0,0.00054794,120]
[383837149,1757139051350,-400.0,0.00054794,120]
[383837150,1757139051359,-400.0,0.00054794,120]
[383837151,1757139051369,-400.0,0.00054794,120]
[383837152,1757139051378,-400.0,0.00054794,120]
[383837153,1757139051388,-400.0,0.00054794,120]
[383837154,1757139051397,-400.0,0.00054794,120]
[383837155,1757139051407,-400.0,0.00054794,120]
[383837156,1757139051416,-411.61987135,0.00054794,120]
[383837157,1757139051427,-400.0,0.00054794,120]
[383837158,1757139051436,-400.0,0.00054794,120]
[383837159,1757139051445,-400.0,0.00054794,120]
[383837160,1757139051455,-399.39986706,0.00054794,120]
[383837161,1757139051464,-400.0,0.00054794,120]
[383837162,1757139051474,-400.0,0.00054794,120]
[383837163,1757139051483,-400.0,0.00054794,120]
[383837164,1757139051492,-402.27961969,0.00054794,120]
[383837165,1757139051502,-400.0,0.00054794,120]
[383837166,1757139051511,-400.0,0.00054794,120]
[383837167,1757139051521,-400.0,0.00054794,120]
[383837168,1757139051530,-400.0,0.00054794,120]
[383837169,1757139051539,-274.16772287,0.00054794,120]
[383837170,1757139051548,-400.0,0.00054794,120]
[383837171,1757139051558,-400.0,0.00054794,120]
[383837172,1757139051568,-400.0,0.00054794,120]
[383837173,1757139051577,-400.0,0.00054794,120]
[383837174,1757139051587,-400.0,0.00054794,120]
[383837175,1757139051597,-400.0,0.00054794,120]
[383837176,1757139051606,-400.0,0.00054794,120]
[383837177,1757139051616,-473.48,0.00054794,120]
[383837178,1757139051626,-400.0,0.00054794,120]
[383837179,1757139051636,-419.26,0.00054794,120]
[383837180,1757139051646,-400.0,0.00054794,120]
[383837181,1757139051656,-401.58149821,0.00054794,120]
[383837182,1757139051666,-400.0,0.00054794,120]
[383837183,1757139051676,-400.0,0.00054794,120]
[383837184,1757139051823,-400.0,0.00054794,120]
[383837185,1757139051833,-400.0,0.00054794,120]
[383837186,1757139051842,-400.0,0.00054794,120]
[383837187,1757139051851,-400.0,0.00054794,120]
[383837188,1757139051861,-400.0,0.00054794,120]
[383837189,1757139051871,-400.0,0.00054794,120]
[383837190,1757139051881,-408.68214387,0.00054794,120]
[383837191,1757139051891,-400.0,0.00054794,120]
[383837192,1757139051901,-398.04952818,0.00054794,120]
[383837193,1757139051911,-400.0,0.00054794,120]
[383837194,1757139051921,-400.0,0.00054794,120]
[383837195,1757139051931,-400.0,0.00054794,120]
[383837196,1757139051940,-400.0,0.00054794,120]
[383837197,1757139051950,-407.76709529,0.00054794,120]
[383837198,1757139051960,-400.0,0.00054794,30]
[383837199,1757139051970,-400.0,0.00054794,120]
[383837200,1757139051979,-409.02456264,0.00054794,120]
[383837201,1757139051988,-400.0,0.00054794,120]
[383837202,1757139051997,-402.10857857,0.00054794,120]
[383837203,1757139052007,-400.0,0.00054794,120]
[383837204,1757139052016,-406.88121441,0.00054794,120]
[383837205,1757139052026,-400.0,0.00054794,120]
[383837206,1757139052035,-400.0,0.00054794,120]
[383837207,1757139052045,-402.23071567,0.00054794,120]
[383837208,1757139052054,-400.0,0.00054794,120]
[383837209,1757139052063,-400.0,0.00054794,120]
[383837210,1757139052073,-400.0,0.00054794,120]
[383837211,1757139052082,-400.0,0.00054794,120]
[383837212,1757139052092,-400.0,0.00054794,120]
[383837213,1757139052102,-405.66804758,0.00054794,120]
[383837214,1757139052111,-400.0,0.00054794,120]
[383837215,1757139052121,-401.94104722,0.00054794,120]
[383837216,1757139052130,-400.0,0.00054794,120]
[383837217,1757139052139,-501.68,0.00054794,120]
[383837218,1757139052149,-406.97385064,0.00054794,120]
[383837219,1757139052158,-400.0,0.00054794,120]
[383837220,1757139052168,-400.0,0.00054794,120]
[383837221,1757139052178,-400.0,0.00054794,120]
[383837222,1757139052189,-400.0,0.00054794,120]
[383837223,1757139052199,-400.0,0.00054794,120]
[383837224,1757139052208,-401.44975353,0.00054794,120]
[383837225,1757139052218,-400.0,0.00054794,120]
[383837226,1757139052228,-400.0,0.00054794,120]
[383837227,1757139052238,-400.0,0.00054794,120]
[383837228,1757139052248,-410.0004413,0.00054794,120]
[383837229,1757139052258,-493.60117124,0.00054794,120]
[383837230,1757139052267,-400.0,0.00054794,120]
[383837231,1757139052277,-400.0,0.00054794,120]
[383837232,1757139052288,-401.48835024,0.00054794,120]
[383837233,1757139052299,-418.08515781,0.00054794,120]
[383837234,1757139052310,-400.0,0.00054794,120]
[383837235,1757139052320,-400.0,0.00054794,120]
[383837236,1757139052329,-400.0,0.00054794,120]
[383837237,1757139052341,-400.0,0.00054794,120]
[383837238,1757139052350,-408.78912492,0.00054794,120]
[383837239,1757139052362,-400.0,0.00054794,120]
[383837240,1757139052373,-404.16599328,0.00054794,120]
[383837241,1757139052386,-400.0,0.00054794,120]
[383837242,1757139052396,-400.0,0.00054794,120]
[383837243,1757139052406,-400.0,0.00054794,120]
[383837244,1757139052416,-400.0,0.00054794,120]
[383837245,1757139052426,-401.13242533,0.00054794,120]
[383837246,1757139052435,-400.0,0.00054794,120]
[383837247,1757139052445,-400.0,0.00054794,120]
[383837248,1757139052455,-500.0,0.00054794,120]
[383837249,1757139052465,-506.64214547,0.00054794,120]
[383837250,1757139052475,-400.0,0.00054794,120]
[383837251,1757139052484,-400.0,0.00054794,120]
[383837252,1757139052495,-404.27568438,0.00054794,120]
[383837253,1757139052505,-400.0,0.00054794,120]
[383837254,1757139052514,-400.0,0.00054794,120]
[383837255,1757139052523,-418.01,0.00054794,120]
[383837256,1757139052533,-400.0,0.00054794,120]
[383837257,1757139052543,-400.0,0.00054794,120]
[383837258,1757139052552,-400.0,0.00054794,120]
[383837259,1757139052561,-250.01227704,0.00054794,120]
[383837260,1757139052571,-400.0,0.00054794,120]
[383837261,1757139052580,-150.0,0.00054794,120]
[383837262,1757139052590,-404.54027275,0.00054794,120]
[383837263,1757139052599,-400.0,0.00054794,120]
[383837264,1757139052609,-400.0,0.00054794,120]
[383837265,1757139052620,-400.0,0.00054794,120]
[383837266,1757139052629,-400.0,0.00054794,120]
[383837267,1757139052639,-400.0,0.00054794,120]
[383837268,1757139052649,-400.0,0.00054794,120]
[383837269,1757139052658,-400.0,0.00054794,120]
[383837270,1757139052668,-400.0,0.00054794,120]
[383837271,1757139052677,-400.0,0.00054794,120]
[383837272,1757139052689,-400.0,0.00054794,120]
[383837273,1757139052699,-400.0,0.00054794,120]
[383837274,1757139052708,-400.0,0.00054794,120]
[383837275,1757139052717,-401.23676882,0.00054794,120]
[383837276,1757139052727,-400.0,0.00054794,7]
[383837277,1757139052737,-400.0,0.00054794,120]
[383837278,1757139052747,-400.0,0.00054794,120]
[383837279,1757139052756,-400.0,0.00054794,120]
[383837280,1757139052766,-400.03305274,0.00054794,120]
[383837281,1757139052776,-400.0,0.00054794,120]
[383837282,1757139052785,-400.0,0.00054794,120]
[383837283,1757139052796,-400.0,0.00054794,120]
[383837284,1757139052805,-400.0,0.00054794,120]
[383837285,1757139052815,-500.0,0.00054794,120]
[383837286,1757139052825,-500.0,0.00054794,120]
[383837287,1757139052836,-516.6759266,0.00054794,120]
[383837288,1757139052845,-400.0,0.00054794,120]
[383837289,1757139052855,-400.0,0.00054794,120]
[383837290,1757139052865,-400.0,0.00054794,120]
[383837291,1757139052875,-400.0,0.00054794,120]
[383837292,1757139052885,-402.0911143,0.00054794,120]
[383837293,1757139052895,-400.0,0.00054794,120]
[383837294,1757139052905,-400.0,0.00054794,120]
[383837295,1757139052915,-400.0,0.00054794,120]
[383837296,1757139052924,-402.63045624,0.00054794,120]
[383837297,1757139052933,-400.0,0.00054794,120]
[383837298,1757139052943,-400.0,0.00054794,120]
[383837299,1757139052952,-400.0,0.00054794,120]
[383837300,1757139052961,-400.0,0.00054794,120]
[383837301,1757139052971,-400.0,0.00054794,120]
[383837302,1757139052980,-405.59699409,0.00054794,120]
[383837303,1757139052990,-400.0,0.00054794,120]
[383837304,1757139052999,-400.0,0.00054794,120]
[383837305,1757139053008,-404.63498774,0.00054794,120]
[383837306,1757139053018,-400.0,0.00054794,120]
[383837307,1757139053028,-403.257801,0.00054794,120]
[383837308,1757139053037,-400.0,0.00054794,120]
[383837309,1757139053046,-402.07261156,0.00054794,120]
[383837310,1757139053055,-400.0,0.00054794,120]
[383837311,1757139053064,-403.7739818,0.00054794,120]
[383837312,1757139053074,-407.44052194,0.00054794,120]
[383837313,1757139053083,-400.0,0.00054794,120]
[383837314,1757139053093,-411.20969603,0.00054794,120]
[383837315,1757139053103,-400.0,0.00054794,120]
[383837316,1757139053112,-400.0,0.00054794,120]
[383837317,1757139053121,-400.0,0.00054794,120]
[383837318,1757139053131,-400.0,0.00054794,120]
[383837319,1757139053140,-400.0,0.00054794,120]
[383837320,1757139053149,-400.0,0.00054794,120]
[383837321,1757139053158,-401.85622565,0.00054794,120]
[383837322,1757139053168,-400.0,0.00054794,120]
[383837323,1757139053177,-400.0,0.00054794,120]
[383837324,1757139053187,-400.0,0.00054794,120]
[383837325,1757139053196,-400.0,0.00054794,120]
[383837326,1757139053206,-404.30099509,0.00054794,120]
[383837327,1757139053215,-400.0,0.00054794,120]
[383837328,1757139053225,-400.0,0.00054794,120]
[383837329,1757139053235,-400.0,0.00054794,120]
[383837330,1757139053244,-400.0,0.00054794,120]
[383837331,1757139053254,-400.0,0.00054794,120]
[383837332,1757139053264,-400.0,0.00054794,120]
[383837333,1757139053273,-400.0,0.00054794,120]
[383837334,1757139053283,-543.54444181,0.00054794,120]
[383837335,1757139053293,-400.0,0.00054794,120]
[383837336,1757139053303,-400.0,0.00054794,120]
[383837337,1757139053312,-400.0,0.00054794,120]
[383837338,1757139053322,-400.0,0.00054794,120]
[383837339,1757139053331,-400.0,0.00054794,120]
[383837340,1757139053342,-403.13050117,0.00054794,120]
[383837341,1757139053351,-400.0,0.00054794,120]
[383837342,1757139053360,-400.0,0.00054794,120]
[383837343,1757139053370,-400.0,0.00054794,120]
[383837344,1757139053379,-400.0,0.00054794,120]
[383837345,1757139053389,-400.0,0.00054794,120]
[383837346,1757139053399,-405.92104211,0.00054794,120]
[383837347,1757139053408,-400.0,0.00054794,120]
[383837348,1757139053417,-400.0,0.00054794,120]
[383837349,1757139053426,-410.43446563,0.00054794,120]
[383837350,1757139053435,-404.05944969,0.00054794,120]
[383837351,1757139053445,-400.0,0.00054794,120]
[383837352,1757139053455,-400.0,0.00054794,120]
[383837353,1757139053464,-400.0,0.00054794,120]
[383837354,1757139053473,-400.0,0.00054794,120]
[383837355,1757139053483,-408.11833514,0.00054794,120]
[383837356,1757139053492,-400.0,0.00054794,120]
[383837357,1757139053502,-400.0,0.00054794,120]
[383837358,1757139053512,-400.0,0.00054794,120]
[383837359,1757139053521,-400.0,0.00054794,120]
[383837360,1757139053531,-400.0,0.00054794,120]
[383837361,1757139053540,-400.0,0.00054794,120]
[383837362,1757139053550,-400.0,0.00054794,120]
[383837363,1757139053560,-400.0,0.00054794,120]
[383837364,1757139053569,-401.36461691,0.00054794,120]
[383837365,1757139053579,-400.0,0.00054794,120]
[383837366,1757139053589,-400.0,0.00054794,120]
[383837367,1757139053599,-400.0,0.00054794,120]
[383837368,1757139053608,-400.0,0.00054794,120]
[383837369,1757139053617,-400.0,0.00054794,120]
[383837370,1757139053627,-400.0,0.00054794,120]
[383837371,1757139053637,-400.0,0.00054794,120]
[383837372,1757139053647,-400.0,0.00054794,120]
[383837373,1757139053656,-404.31756415,0.00054794,120]
[383837374,1757139053666,-400.0,0.00054794,120]
[383837375,1757139053675,-400.0,0.00054794,120]
[383837376,1757139053685,-400.0,0.00054794,120]
[383837377,1757139053695,-409.1155206,0.00054794,120]
[383837378,1757139053704,-400.0,0.00054794,120]
[383837379,1757139053714,-400.0,0.00054794,120]
[383837380,1757139053724,-402.63829343,0.00054794,120]
[383837381,1757139053734,-400.0,0.00054794,120]
[383837382,1757139053743,-400.0,0.00054794,120]
[383837383,1757139053752,-404.57273412,0.00054794,120]
[383837384,1757139053762,-404.30854822,0.00054794,120]
[383837385,1757139053772,-406.3871822,0.00054794,120]
[383837386,1757139053782,-188.90024459,0.00054794,120]
[383837387,1757139053791,-406.16588123,0.00054794,120]
[383837388,1757139053800,-400.0,0.00054794,120]
[383837389,1757139053810,-400.0,0.00054794,120]
[383837390,1757139053819,-400.0,0.00054794,120]
[383837391,1757139053828,-400.0,0.00054794,120]
[383837392,1757139053839,-400.0,0.00054794,120]
[383837393,1757139053850,-411.03993339,0.00054794,120]
[383837394,1757139053861,-400.0,0.00054794,120]
[383837395,1757139053870,-401.90744707,0.00054794,120]
[383837396,1757139053879,-400.0,0.00054794,120]
[383837397,1757139053891,-400.0,0.00054794,120]
[383837398,1757139053902,-400.0,0.00054794,120]
[383837399,1757139053912,-403.6045038,0.00054794,120]
[383837400,1757139053922,-400.0,0.00054794,120]
[383837401,1757139053933,-400.0,0.00054794,120]
[383837402,1757139053943,-400.0,0.00054794,120]
[383837403,1757139053952,-500.0,0.00054794,120]
[383837404,1757139053962,-404.58774793,0.00054794,120]
[383837405,1757139053971,-1010.18922285,0.00054794,120]
[383837406,1757139053980,-400.0,0.00054794,120]
[383837407,1757139053989,-400.0,0.00054794,120]
[383837408,1757139053998,-400.0,0.00054794,120]
[383837409,1757139054007,-400.0,0.00054794,120]
[383837410,1757139054017,-400.0,0.00054794,120]
[383837411,1757139054027,-400.0,0.00054794,120]
[383837412,1757139054036,-400.0,0.00054794,120]
[383837413,1757139054046,-400.0,0.00054794,120]
[383837414,1757139054055,-400.0,0.00054794,120]
[383837415,1757139054196,-400.0,0.00054794,120]
[383837416,1757139054206,-466.66,0.00054794,120]
[383837417,1757139054215,-400.0,0.00054794,120]
[383837418,1757139054225,-400.0,0.00054794,120]
[383837419,1757139054235,-400.0,0.00054794,120]
[383837420,1757139054244,-400.0,0.00054794,120]
[383837421,1757139054253,-409.37145283,0.00054794,120]
[383837422,1757139054263,-400.0,0.00054794,120]
[383837423,1757139054273,-400.0,0.00054794,120]
[383837424,1757139054291,-400.0,0.00054794,120]
[383837425,1757139054300,-401.78347757,0.00054794,120]
[383837426,1757139054309,-400.0,0.00054794,120]
[383837427,1757139054319,-400.0,0.00054794,120]
[383837428,1757139054329,-400.0,0.00054794,120]
[383837429,1757139054338,-400.0,0.00054794,120]
[383837430,1757139054347,-400.0,0.00054794,120]
[383837431,1757139054356,-400.0,0.00054794,120]
[383837432,1757139054366,-400.0,0.00054794,120]
[383837433,1757139054380,-400.0,0.00054794,120]
[383837434,1757139054393,-404.77216402,0.00054794,120]
[383837435,1757139054402,-400.0,0.00054794,120]
[383837436,1757139054412,-406.63665391,0.00054794,120]
[383837437,1757139054423,-406.51447712,0.00054794,120]
[383837438,1757139054433,-400.0,0.00054794,120]
[383837439,1757139054442,-400.0,0.00054794,120]
[383837440,1757139054452,-400.0,0.00054794,120]
[383837441,1757139054461,-400.0,0.00054794,120]
[383837442,1757139054472,-405.40417943,0.00054794,120]
[383837443,1757139054481,-407.04950786,0.00054794,120]
[383837444,1757139054491,-400.0,0.00054794,120]
[383837445,1757139054501,-400.0,0.00054794,120]
[383837446,1757139054511,-400.0,0.00054794,120]
[383837447,1757139054520,-400.0,0.00054794,120]
[383837448,1757139054530,-400.0,0.00054794,120]
[383837449,1757139054540,-400.0,0.00054794,120]
[383837450,1757139054551,-402.35996403,0.00054794,120]
[383837451,1757139054561,-400.0,0.00054794,120]
[383837452,1757139054571,-521.63382537,0.00054794,120]
[383837453,1757139054581,-403.44796719,0.00054794,120]
[383837454,1757139054590,-400.0,0.00054794,120]
[383837455,1757139054600,-400.0,0.00054794,120]
[383837456,1757139054610,-400.0,0.00054794,120]
[383837457,1757139054619,-405.02238253,0.00054794,120]
[383837458,1757139054629,-536.34341479,0.00054794,120]
[383837459,1757139054639,-406.45781666,0.00054794,120]
[383837460,1757139054649,-400.0,0.00054794,120]
[383837461,1757139054659,-400.0,0.00054794,120]
[383837462,1757139054669,-400.0,0.00054794,120]
[383837463,1757139054678,-400.0,0.00054794,120]
[383837464,1757139054688,-400.0,0.00054794,120]
[383837465,1757139054698,-400.0,0.00054794,120]
[383837466,1757139054708,-400.0,0.00054794,120]
[383837467,1757139054717,-400.0,0.00054794,120]
[383837468,1757139054727,-400.0,0.00054794,120]
[383837469,1757139054737,-400.0,0.00054794,120]
[383837470,1757139054747,-400.0,0.00054794,120]
[383837471,1757139054756,-400.0,0.00054794,120]
[383837472,1757139054766,-425.45,0.00054794,120]
[383837473,1757139054775,-400.0,0.00054794,120]
[383837474,1757139054785,-400.0,0.00054794,120]
[383837475,1757139054794,-400.0,0.00054794,120]
[383837476,1757139054803,-400.0,0.00054794,120]
[383837477,1757139054813,-283.60746874,0.00054794,120]
[383837478,1757139054822,-402.55448475,0.00054794,120]
[383837479,1757139054832,-402.51023451,0.00054794,120]
[383837480,1757139054842,-400.0,0.00054794,120]
[383837481,1757139054851,-400.0,0.00054794,30]
[383837482,1757139054860,-400.0,0.00054794,120]
[383837483,1757139054871,-409.06995749,0.00054794,120]
[383837484,1757139054880,-400.0,0.00054794,120]
[383837485,1757139054890,-400.0,0.00054794,120]
[383837486,1757139054899,-400.0,0.00054794,120]
[383837487,1757139054909,-400.0,0.00054794,120]
[383837488,1757139054919,-400.0,0.00054794,120]
[383837489,1757139054928,-400.0,0.00054794,120]
[383837490,1757139054938,-400.0,0.00054794,120]
[383837491,1757139054948,-408.66251859,0.00054794,120]
[383837492,1757139054958,-443.36,0.00054794,120]
[383837493,1757139054967,-400.0,0.00054794,120]
[383837494,1757139054976,-400.0,0.00054794,120]
[383837495,1757139054986,-403.53955868,0.00054794,120]
[383837496,1757139054995,-402.41479802,0.00054794,120]
[383837497,1757139055005,-400.0,0.00054794,120]
[383837498,1757139055015,-400.0,0.00054794,120]
[383837499,1757139055023,-403.44386257,0.00054794,120]
[383837500,1757139055033,-400.0,0.00054794,120]
[383837501,1757139055043,-400.0,0.00054794,120]
[383837502,1757139055052,-402.6770097,0.00054794,120]
[383837503,1757139055062,-406.10464538,0.00054794,120]
[383837504,1757139055071,-401.420783,0.00054794,120]
[383837505,1757139055080,-400.0,0.00054794,120]
[383837506,1757139055090,-400.0,0.00054794,120]
[383837507,1757139055100,-461.2,0.00054794,120]
[383837508,1757139055110,-406.01349916,0.00054794,120]
[383837509,1757139055119,-400.0,0.00054794,120]
[383837510,1757139055129,-396.27870563,0.00054794,120]
[383837511,1757139055138,-400.0,0.00054794,120]
[383837512,1757139055148,-400.0,0.00054794,120]
[383837513,1757139055157,-402.59122722,0.00054794,120]
[383837514,1757139055167,-406.94563464,0.00054794,120]
[383837515,1757139055176,-402.08991742,0.00054794,120]
[383837516,1757139055186,-400.0,0.00054794,120]
[383837517,1757139055195,-401.32328301,0.00054794,120]
[383837518,1757139055205,-400.0,0.00054794,120]
[383837519,1757139055214,-400.0,0.00054794,120]
[383837520,1757139055223,-400.92535092,0.00054794,120]
[383837521,1757139055233,-400.0,0.00054794,120]
[383837522,1757139055244,-400.0,0.00054794,120]
[383837523,1757139055255,-408.9049616,0.00054794,120]
[383837524,1757139055266,-400.0,0.00054794,120]
[383837525,1757139055277,-403.22330455,0.00054794,120]
[383837526,1757139055289,-469.80641913,0.00054794,120]
[383837527,1757139055298,-411.22647143,0.00054794,120]
[383837528,1757139055310,-402.00500464,0.00054794,120]
[383837529,1757139055320,-400.0,0.00054794,120]
[383837530,1757139055332,-404.63425193,0.00054794,120]
[383837531,1757139055343,-405.50983772,0.00054794,120]
[383837532,1757139055353,-400.0,0.00054794,120]
[383837533,1757139055363,-400.0,0.00054794,120]
[383837534,1757139055372,-404.1895971,0.00054794,120]
[383837535,1757139055382,-404.24959681,0.00054794,120]
[383837536,1757139055391,-400.0,0.00054794,120]
[383837537,1757139055401,-400.0,0.00054794,120]
[383837538,1757139055412,-400.0,0.00054794,120]
[383837539,1757139055422,-1015.00678231,0.00054794,120]
[383837540,1757139055437,-404.58649939,0.00054794,120]
[383837541,1757139055448,-400.0,0.00054794,120]
[383837542,1757139055460,-400.0,0.00054794,120]
[383837543,1757139055472,-400.0,0.00054794,120]
[383837544,1757139055481,-400.0,0.00054794,120]
[383837545,1757139055491,-400.0,0.00054794,120]
[383837546,1757139055501,-400.0,0.00054794,120]
[383837547,1757139055511,-400.0,0.00054794,120]
[383837548,1757139055521,-400.0,0.00054794,120]
[383837549,1757139055531,-400.0,0.00054794,120]
[383837550,1757139055541,-400.0,0.00054794,120]
[383837551,1757139055551,-402.31304874,0.00054794,120]
[383837552,1757139055561,-400.0,0.00054794,120]
[383837553,1757139055571,-400.0,0.00054794,120]
[383837554,1757139055581,-400.0,0.00054794,120]
[383837555,1757139055591,-400.0,0.00054794,120]
[383837556,1757139055601,-408.97573399,0.00054794,120]
[383837557,1757139055613,-400.0,0.00054794,120]
[383837558,1757139055623,-400.0,0.00054794,120]
[383837559,1757139055633,-400.0,0.00054794,120]
[383837560,1757139055643,-400.0,0.00054794,120]
[383837561,1757139055655,-400.0,0.00054794,120]
[383837562,1757139055665,-404.39511857,0.00054794,120]
[383837563,1757139055675,-400.0,0.00054794,120]
[383837564,1757139055684,-400.0,0.00054794,120]
[383837565,1757139055694,-400.0,0.00054794,120]
[383837566,1757139055704,-401.92,0.00054794,120]
[383837567,1757139055713,-400.0,0.00054794,120]
[383837568,1757139055725,-400.0,0.00054794,120]
[383837569,1757139055734,-406.81971542,0.00054794,120]
[383837570,1757139055744,-163.2709678,0.00054794,120]
[383837571,1757139055754,-400.0,0.00054794,120]
[383837572,1757139055765,-401.30454358,0.00054794,120]
[383837573,1757139055775,-400.0,0.00054794,120]
[383837574,1757139055784,-400.0,0.00054794,120]
[383837575,1757139055794,-400.0,0.00054794,120]
[383837576,1757139055804,-401.44247512,0.00054794,120]
[383837577,1757139055813,-500.0,0.00054794,2]
[383837578,1757139055823,-500.0,0.00054794,2]
[383837579,1757139055832,-403.52552332,0.00054794,120]
[383837580,1757139055842,-502.329652,0.00054794,2]
[383837581,1757139055851,-400.0,0.00054794,120]
[383837582,1757139055861,-402.32200901,0.00054794,120]
[383837583,1757139055871,-400.0,0.00054794,120]
[383837584,1757139055880,-408.23900168,0.00054794,120]
[383837585,1757139055890,-420.39019592,0.00054794,120]
[383837586,1757139055900,-400.0,0.00054794,120]
[383837587,1757139055910,-400.0,0.00054794,120]
[383837588,1757139055920,-404.9281098,0.00054794,120]
[383837589,1757139055931,-400.0,0.00054794,120]
[383837590,1757139055941,-400.0,0.00054794,120]
[383837591,1757139055951,-410.10107919,0.00054794,120]
[383837592,1757139055960,-405.70294447,0.00054794,120]
[383837593,1757139055970,-400.0,0.00054794,120]
[383837594,1757139055980,-425.83,0.00054794,120]
[383837595,1757139055990,-403.81241923,0.00054794,120]
[383837596,1757139056000,-400.0,0.00054794,120]
[383837597,1757139056010,-400.0,0.00054794,120]
[383837598,1757139056019,-400.0,0.00054794,120]
[383837599,1757139056030,-400.0,0.00054794,120]
[383837600,1757139056039,-400.0,0.00054794,120]
[383837601,1757139056048,-400.0,0.00054794,30]
[383837602,1757139056058,-406.67182848,0.00054794,120]
[383837603,1757139056067,-403.0286047,0.00054794,120]
[383837604,1757139056077,-400.0,0.00054794,120]
[383837605,1757139056086,-400.0,0.00054794,120]
[383837606,1757139056096,-400.0,0.00054794,120]
[383837607,1757139056105,-404.99039767,0.00054794,120]
[383837608,1757139056115,-410.76008326,0.00054794,120]
[383837609,1757139056125,-500.0,0.00054794,120]
[383837610,1757139056135,-401.53276471,0.00054794,120]
[383837611,1757139056144,-406.34832015,0.00054794,120]
[383837612,1757139056154,-403.95498455,0.00054794,120]
[383837613,1757139056165,-401.7375854,0.00054794,120]
[383837614,1757139056175,-400.0,0.00054794,120]
[383837615,1757139056184,-403.67009802,0.00054794,120]